Workbook

Sheet Profile
A1: ADVISOR NAME
A2: ADVISOR CODE
A3: PLAN
A4: DATE OF DISSCUSSION
A5: Review Date
A6: Pan No.
A7: Name
A8: DOB -
A9: Mobile no -
A10: Mail Id
A11: Monthers Name -
A12: Father Name
A13: Hieght
A14: Weight
A15: Education
A16: Occupation
A17: Name of Company
A18: Designation
A19: Annual Income
A20: Nature of work
A21: Smoker/non smoker
A22: Any Existing Disease
A23: Alcohol
A24: Other Details
A25: Bank Name
A26: Account NO / IBAN NO.
A27: Branch
A28: IFSC CODE / BIC NO.
A29: MICR NO / UST IDNR
A30: NOMINEE NAME
A31: NAMONEE DOB
A32: RELATIONSHIP WITH NOMINEE
A33: VACCINATION DATE 1ST DOSE
A34: VACCINATION DATE 1ST DOSE
A35: Address

Sheet Money
A1: S. NO. | B1: PARTICULARS | C1: DATE | D1: INVESTMENT AMOUNT | E1: GOAL AMOUNT | F1: CURRENT VALUE | G1: CURRENT DATE | H1: Return on Investment | I1: TIME TAKEN | J1: XIRR
A2: 1 | B2: MULTIBAGGER | E2: 500000 | F2: 1000000 | G2: =TODAY() -> 2025-02-05 | H2: =((F2-D2)/D2) ->  | I2: =DAYS(G2,C2)/365 ->  | J2: =(H2/I2)*100 -> 
A3: 2 | B3: 10% STRATEGY | E3: 500000 | F3: 1000000 | G3: 2025-02-05
A4: 3 | B4: IDEA2ACT AND WIN | E4: 500000 | F4: 400000 | G4: 2025-02-05
A5: 4 | B5: IIFL FLEXI CAP | E5: 1000000 | F5: 2000000 | G5: 2025-02-05
A6: 5 | B6: EQUITY MF | E6: 1000000 | G6: 2025-02-05
A7: 6 | B7: DEBT MF | G7: 2025-02-05
A8: 7 | B8: HYBRID MF | G8: 2025-02-05
G9: 2025-02-05 | I9: =G9-C9 -> 2025-02-05
G10: 2025-02-05 | I10: 2025-02-05
G11: 2025-02-05 | I11: 2025-02-05
G12: 2025-02-05 | I12: 2025-02-05
E13: Achieved | F13: =SUM(F2:F12) -> 4400000
E14: Required | F14: =Aspirations!L21 -> 14084784.7
E15: Shortfall | F15: =F14-F13 -> 9684784.703

Sheet Security
A2: S. No. | B2: Particular | C2: RECOMMENDED AMOUNT | D2: INSURED AMOUNT | E2: Policy No | F2: Company | G2: Amount | H2: Renewal Date | I2: Remark
A3: 1 | B3: HEALTH INSRANCE | C3: 1000000
A4: 2 | B4: LIFE INSURANCE | C4: 60-AGE*YEARLY EXPESES
A5: 3 | B5: ACCIDENTAL INSURANCE | C5: LIFE
A6: 4 | B6: CRITICAL ILLNESS | C6: 2000000
A7: 5
A8: 6

Sheet Aspirations
A1: Goal 1 | G1: Goal 2 | H1: CALCULATE = SIP | K1: TOTAL SIP REQUIRED
A2: RETIREMENT PLANNING | G2: CHILD EDUCATION/MARRIAGE | J2: GOAL1 | K2: RETIREMENT | L2: =C13 -> 4430.047774
A3: COST AT FREEDOM | C3: 150000 | G3: CHILD CURRENT AGE | H3: 13 | J3: GOAL2 | K3: CHILD MARRIAGE/ EDUCATION | L3: =H9 -> 30143.22549
A4: CURRENT AGE | C4: 47 | G4: TIME | H4: 4 | J4: GOAL3 | K4: HOME/OFFICE | L4: =H23 -> 90912.72652
A5: CURRENT ANNUAL EXPENSES | C5: 60000 | G5: CURRENT COST | H5: 1500000 | J5: GOAL4 | K5: ASPIRATION | L5: =H33 -> 30000
A6: TIME | C6: 11 | G6: INFLATION | H6: 0.07 | J6: GOAL 5 | K6: OTHER | L6: =H46 -> 8679.148768
A7: COMPOUNDING | C7: YEARLY | G7: FUTURE COST | H7: =FV(H6,H4,-I50,-H5,0) -> 1966194.015 | K7: TOTAL SIP REQUIRED | L7: =SUM(L2:L6) -> 164165.1485 | Q7: pv | R7: 75000
A8: INFLATION | C8: 0.05 | G8: RETURN ON INVESTMENT | H8: 0.15 | Q8: time | R8: 20
A9: RETURN ON INVESTMENT | C9: 0.15 | G9: MONTHLY SIP REQUIRED | H9: =PMT(H8/12,H4*12,0,-H7,0) -> 30143.22549 | Q9: inflation | R9: 0.07
A10: REAL RETURN | C10: =(1+C9)/(1+C8)-1 -> 0.09523809524 | Q10: cost | R10: =FV(R9,R8,0,-R7,0) -> 290226.3347
A11: LIVING AGE | C11: 30
A12: CORPUS AT 60 | C12: =PV(C10,C11,-C3,0,0) -> 1472192.613
A13: MONTHLY SIP REQUIRED | C13: =PMT(C9/12,C6*12,0,-C12,0) -> 4430.047774
A15: AGE | B15: CORPUS | C15: EXPENSES | D15: NET AMOUNT | G15: Goal 3 | H15: INCREASE COST VALUE - CLCULATE SIP | K15: Total Amount Required
A16: 60 | B16: =C12 -> 1472192.613 | C16: =C3 -> 150000 | D16: =B16-C16 -> 1322192.613 | G16: HOME | J16: GOAL1 | K16: RETIREMENT | L16: =C12 -> 1472192.613
A17: 61 | B17: =B16*115% -> 1693021.505 | C17: =C16*107% -> 160500 | D17: 1532521.505 | J17: GOAL2 | K17: CHILD MARRIAGE/ EDUCATION | L17: =H7 -> 1966194.015
A18: 62 | B18: =D17*115% -> 1762399.731 | C18: 171735 | D18: 1590664.731 | G18: TIME | H18: 5 | J18: GOAL3 | K18: HOME/OFFICE | L18: =H21 -> 8052550
A19: 63 | B19: 1829264.441 | C19: 183756.45 | D19: 1645507.991 | G19: CURRENT COST | H19: 5000000 | J19: GOAL4 | K19: ASPIRATION | L19: =H29 -> 1000000
A20: 64 | B20: 1892334.189 | C20: 196619.4015 | D20: 1695714.788 | G20: INFLATION | H20: 0.1 | J20: GOAL 5 | K20: OTHER | L20: =H44 -> 1593848.075
A21: 65 | B21: 1950072.006 | C21: 210382.7596 | D21: 1739689.247 | G21: FUTURE COST | H21: =FV(H20,H18,-I64,-H19,0) -> 8052550 | K21: TOTAL SIP REQUIRED | L21: =SUM(L16:L20) -> 14084784.7
A22: 66 | B22: 2000642.634 | C22: 225109.5528 | D22: 1775533.081 | G22: RETURN ON INVESTMENT | H22: 0.15
A23: 67 | B23: 2041863.043 | C23: 240867.2215 | D23: 1800995.821 | G23: MONTHLY SIP REQUIRED | H23: =PMT(H22/12,H18*12,0,-H21,0) -> 90912.72652
A24: 68 | B24: 2071145.195 | C24: 257727.927 | D24: 1813417.268
A25: 69 | B25: 2085429.858 | C25: 275768.8819 | D25: 1809660.976
A26: 70 | B26: 2081110.122 | C26: 295072.7036 | D26: 1786037.419
A27: 71 | B27: 2053943.031 | C27: 315727.7928 | D27: 1738215.239 | G27: Goal 4 | H27: CACULATE TIME
A28: 72 | B28: 1998947.524 | C28: 337828.7383 | D28: 1661118.786 | G28: TIME TO WAIT TO BUY A CAR
A29: 73 | B29: 1910286.604 | C29: 361476.75 | D29: 1548809.854 | G29: COST OF CAR | H29: 1000000
A30: 74 | B30: 1781131.332 | C30: 386780.1225 | D30: 1394351.209 | G30: RETURN ON INVESTMENT | H30: 0.15
A31: 75 | B31: 1603503.891 | C31: 413854.7311 | D31: 1189649.16 | G31: INFLATION | H31: 0.07
A32: 76 | B32: 1368096.534 | C32: 442824.5623 | D32: 925271.9715 | G32: EFFECTIVE RATE | H32: =(1+H30)/(1+H31)-1 -> 0.07476635514
A33: 77 | B33: 1064062.767 | C33: 473822.2816 | D33: 590240.4856 | G33: SIP | H33: 30000
A34: 78 | B34: 678776.5584 | C34: 506989.8414 | D34: 171786.7171 | G34: TIME | H34: =NPER(H32/12,-H33*12,H29,0,0) -> 2.810816546
A35: 79 | B35: 197554.7246 | C35: 542479.1303 | D35: -344924.4056 | G35: PRESENT SAVING | H35: 0
A36: 80 | B36: -396663.0665 | C36: 580452.6694 | D36: -977115.7359
A37: 81 | B37: -1123683.096 | C37: 621084.3562 | D37: -1744767.452
A38: 82 | B38: -2006482.57 | C38: 664560.2612 | D38: -2671042.831 | G38: Goal 5
A39: 83 | B39: -3071699.256 | C39: 711079.4794 | D39: -3782778.736 | G39: OTHER
A40: 84 | B40: -4350195.546 | C40: 760855.043 | D40: -5111050.589
A41: 85 | B41: -5877708.177 | C41: 814114.896 | D41: -6691823.073 | G41: TIME | H41: 8
A42: 86 | B42: -7695596.534 | C42: 871102.9387 | D42: -8566699.473 | G42: CURRENT COST | H42: 1000000
A43: 87 | B43: -9851704.394 | C43: 932080.1445 | D43: -10783784.54 | G43: INFLATION | H43: 0.06
A44: 88 | B44: -12401352.22 | C44: 997325.7546 | D44: -13398677.97 | G44: FUTURE COST | H44: =FV(H43,H41,-I87,-H42,0) -> 1593848.075
A45: 89 | B45: -15408479.67 | C45: 1067138.557 | D45: -16475618.23 | G45: RETURN ON INVESTMENT | H45: 0.15
A46: 90 | B46: -18946960.96 | C46: 1141838.256 | D46: -20088799.22 | G46: MONTHLY SIP REQUIRED | H46: =PMT(H45/12,H41*12,0,-H44,0) -> 8679.148768
A47: 91 | B47: -23102119.1 | C47: 1221766.934 | D47: -24323886.03
A48: 92 | B48: -27972468.94 | C48: 1307290.62 | D48: -29279759.56
A49: 93 | B49: -33671723.49 | C49: 1398800.963 | D49: -35070524.46
A50: 94 | B50: -40331103.13 | C50: 1496717.031 | D50: -41827820.16
A51: 95 | B51: -48101993.18 | C51: 1601487.223 | D51: -49703480.4
A52: 96 | B52: -57159002.46 | C52: 1713591.328 | D52: -58872593.79
A53: 97 | B53: -67703482.86 | C53: 1833542.721 | D53: -69537025.58
A54: 98 | B54: -79967579.42 | C54: 1961890.712 | D54: -81929470.13
A55: 99 | B55: -94218890.65 | C55: 2099223.062 | D55: -96318113.71
A56: 100 | B56: -110765830.8 | C56: 2246168.676 | D56: -113011999.4

Sheet CALCULATIONS
A1: SIP TO FUTURE VALUE CALCULATOR
A2: 0.12 | B2: 5000 | C2: 10000 | D2: 20000
A3: 5 | B3: =FV(A2/12,A3*12,-B2,0,1) -> 412431.8328 | C3: =FV($A$2/12,A3*12,-$C$2,0,1) -> 824863.6655 | D3: =FV(12%/12,A3*12,-$D$2,0,1) -> 1649727.331
A4: 10 | B4: =FV(A2/12,A4*12,-B2,0,1) -> 1161695.382 | C4: 2323390.764 | D4: 4646781.527
A5: 15 | B5: =FV(A2/12,A5*12,-B2,0,1) -> 2522879.998 | C5: 5045759.995 | D5: 10091519.99
A6: 40 | B6: =FV(A2/12,A6*12,-B2,0,1) -> 59412101.18 | C6: 118824202.4 | D6: 237648404.7
A7: 80 | B7: =FV(A2/12,A7*12,-B2,0,1) -> 7108522749 | C7: 1.42170455e+10 | D7: 2.8434091e+10
A12: MILESTONE CALCULATOR
A13: YEARS | B13: 12
A14: RATE OF RETURN | B14: 0.12
A15: MILESTONE | B15: 10000000 | C15: 20000000 | D15: 40000000 | E15: 80000000
A16: SIP REQUIRED | B16: =PMT($B$14/12,$B$13*12,0,-B15,1) -> 31031.59816 | C16: 62063.19632 | D16: 124126.3926 | E16: 248252.7853
